bitfinex-derivatives/quotes_ETHF0:USTF0_20250917
["timestamp","ask_amount","ask_price","bid_price","bid_amount"]
[1758151296244,0.5087,4594.1,4593.6,0.5606]
[1758151296450,4.4527,4594.4,4594.3,1.2653]
[1758151296757,3.2078,4594.4,4594.3,1.2653]
[1758151297157,3.575,4594.4,4594.3,1.2653]
[1758151297458,4.4527,4594.4,4594.3,1.2653]
[1758151297957,3.575,4594.4,4594.3,1.2653]
[1758151298653,0.3672,4594.4,4594.3,1.2653]
[1758151299661,1.2449,4594.4,4594.3,1.2653]
[1758151300351,1.2449,4594.4,4594.3,0.8981]
[1758151300552,1.2449,4594.4,4594.3,0.3375]
[1758151301061,0.3672,4593.7,4593.6,1.2653]
[1758151301258,1.2449,4593.7,4593.6,1.2653]
[1758151302559,0.3672,4593.7,4593.6,1.2653]
[1758151302960,0.3672,4593.7,4593.5,0.2166]
[1758151302961,3.575,4594.5,4594.4,0.7047]
[1758151303162,5.19598419,4594.5,4594.4,1.2653]
[1758151303357,4.90448419,4594.5,4594.0,0.2166]
[1758151303663,0.3672,4593.5,4593.4,4.4731]
[1758151303954,0.5087,4593.8,4593.4,4.4731]
[1758151304161,4.6797,4594.0,4593.9,1.2653]
[1758151304354,5.19712009,4594.0,4593.9,0.3375]
[1758151304556,4.16942009,4594.0,4593.4,3.2078]
[1758151304752,1.2449,4593.5,4593.4,3.2078]
[1758151304954,1.2449,4593.4,4593.3,0.3375]
[1758151305156,1.2449,4593.4,4593.3,0.8981]
[1758151305553,1.2449,4593.4,4593.3,0.3375]
[1758151305760,1.4719,4593.4,4593.2,0.02177155]
[1758151305959,1.76234168,4593.3,4593.2,0.02177155]
[1758151306360,1.25364168,4593.3,4593.2,1.28707155]
[1758151306765,0.88464168,4593.3,4593.2,1.28707155]
[1758151307160,0.51744168,4593.3,4593.2,1.28707155]
[1758151307762,0.88464168,4593.3,4593.2,1.28707155]
[1758151308162,0.51744168,4593.3,4593.2,1.28707155]
[1758151309762,1.39334168,4593.3,4593.2,1.28707155]
[1758151310562,1.76234168,4593.3,4593.2,1.28707155]
[1758151311767,1.76234168,4593.3,4593.2,0.02177155]
[1758151312265,1.76234168,4593.3,4593.2,0.35927155]
[1758151312464,1.76234168,4593.3,4593.2,0.02177155]
[1758151313865,1.76234168,4593.3,4593.2,0.35927155]
[1758151314269,1.76234168,4593.3,4593.2,0.02177155]
[1758151314765,1.76234168,4593.3,4592.5,0.0217]
[1758151314766,0.1167,4593.0,4592.5,0.0217]
[1758151314960,1.2449,4592.6,4592.5,0.0217]
[1758151315164,1.96950103,4592.6,4592.5,0.0217]
[1758151315365,0.7362,4592.1,4592.0,0.5606]
[1758151315662,1.76234168,4592.1,4592.0,0.8981]
[1758151316068,0.5087,4592.0,4591.8,3.7684]
[1758151316269,1.2449,4591.9,4591.8,4.1059]
[1758151316460,1.2449,4591.9,4591.8,3.7684]
[1758151316665,0.227,4592.4,4591.3,3.9125]
[1758151316666,0.3672,4591.4,4591.3,3.9125]
[1758151316869,0.7362,4591.4,4591.3,4.4731]
[1758151317271,1.2449,4591.4,4591.3,4.4731]
[1758151317469,0.5087,4591.9,4591.3,3.9125]
[1758151317774,0.5087,4591.9,4591.8,0.8981]
[1758151317775,1.2449,4591.9,4591.8,0.8981]
[1758151317969,0.7362,4591.7,4591.6,0.5606]
[1758151318470,1.2449,4591.7,4591.3,3.2078]
[1758151318665,1.2186,4592.3,4592.2,0.3507]
[1758151318865,1.96298766,4592.3,4591.5,0.2154]
[1758151319061,0.334,4591.6,4591.5,0.2154]
[1758151319263,1.2186,4591.4,4591.2,0.0217]
[1758151319566,0.6842,4591.7,4591.6,1.2461]
[1758151319778,1.20147196,4591.7,4591.6,1.2461]
[1758151320270,0.5344,4592.4,4591.7,0.5417]
[1758151320463,1.73578902,4592.3,4592.2,0.5417]
[1758151320663,1.73578902,4592.3,4592.2,0.8924]
[1758151320869,1.20138902,4592.3,4592.2,1.2461]
[1758151321266,0.51718902,4592.3,4592.2,1.2461]
[1758151321466,0.5344,4593.4,4592.3,0.39178]
[1758151321768,0.5344,4593.4,4592.2,4.0]
[1758151321769,1.2186,4592.7,4592.2,0.5417]
[1758151321967,0.5344,4593.4,4592.7,0.5417]
[1758151322174,0.334,4592.8,4592.7,1.2461]
[1758151323179,0.5344,4593.4,4592.8,0.5417]
[1758151323380,1.20110554,4593.3,4593.2,1.2461]
[1758151324078,1.73550554,4593.3,4592.6,0.5417]
[1758151324383,1.73550554,4593.2,4593.1,0.8924]
[1758151324575,0.51690554,4593.2,4593.1,1.2461]
[1758151324870,3.2078,4594.0,4593.0,0.2154]
[1758151324871,4.4264,4594.0,4593.9,1.2461]
[1758151325072,4.94325537,4594.0,4593.9,1.2461]
[1758151325285,4.40885537,4594.0,4593.9,1.2461]
[1758151326072,4.4444,4594.0,4593.9,1.2461]
[1758151326272,3.892,4594.0,4593.9,1.2461]
[1758151326574,3.5418,4594.0,4593.9,1.2461]
[1758151326775,3.7602,4594.5,4594.0,0.2065]
[1758151326979,1.45020401,4594.4,4594.3,1.195]
[1758151327278,1.22320401,4594.4,4594.3,1.195]
[1758151327480,1.10160401,4594.4,4594.3,1.195]
[1758151327779,3.2078,4594.5,4594.3,0.6799]
[1758151327979,3.2078,4594.5,4594.4,1.195]
[1758151328377,3.5656,4594.5,4594.4,1.195]
[1758151329981,3.9142,4594.5,4594.4,1.195]
[1758151330281,0.7064,4594.5,4594.4,1.195]
[1758151330682,1.2588,4594.5,4594.4,0.8513]
[1758151330982,0.7064,4594.5,4594.4,1.195]
[1758151331282,1.2588,4594.5,4594.4,1.195]
[1758151333178,0.7064,4594.5,4594.4,1.195]
[1758151333682,0.227,4594.8,4594.4,1.195]
[1758151333881,3.7602,4595.0,4594.4,1.195]
[1758151334184,1.4858,4595.0,4594.9,0.8513]
[1758151334477,2.00477211,4595.0,4594.9,0.8513]
[1758151334681,1.4858,4595.0,4594.9,0.8513]
[1758151334985,1.2588,4595.0,4594.9,0.8513]
[1758151335178,1.4858,4595.0,4594.9,0.8513]
[1758151338490,1.4858,4595.0,4594.6,1.195]
[1758151338491,0.7064,4594.7,4594.6,1.195]
[1758151347090,0.3578,4594.7,4594.6,1.195]
[1758151348884,0.7064,4594.7,4594.6,1.195]
[1758151349598,1.4858,4595.1,4595.0,1.4015]
[1758151349798,1.4858,4595.1,4595.0,0.8513]
[1758151351300,2.00747042,4595.1,4595.0,0.8513]
[1758151351505,2.00747042,4595.1,4595.0,1.4015]
[1758151352203,1.78047042,4595.1,4595.0,1.4015]
[1758151352401,1.78047042,4595.1,4595.0,1.195]
[1758151353100,0.52167042,4595.1,4595.0,1.4015]
[1758151353410,3.5656,4596.0,4595.9,1.195]
[1758151354805,0.3578,4596.0,4595.9,1.195]
[1758151355300,0.7064,4596.0,4595.9,1.195]
[1758151355503,0.9169,4596.1,4596.0,0.9205]
[1758151355897,1.4153,4596.1,4596.0,0.9205]
[1758151356100,1.4153,4596.1,4596.0,1.4518]
[1758151356504,0.9169,4596.1,4596.0,1.4518]
[1758151356705,0.3299,4596.4,4596.3,1.2453]
[1758151357601,0.4984,4596.8,4596.5,0.2038]
[1758151357807,0.662,4596.8,4596.7,1.2453]
[1758151358409,0.3299,4596.8,4596.7,1.2453]
[1758151361315,3.2078,4597.1,4597.0,0.2038]
[1758151361514,3.7647,4597.1,4597.0,0.9178]
[1758151361714,3.5377,4597.1,4597.0,1.4491]
[1758151362414,4.3682,4597.1,4597.0,1.4491]
[1758151364513,3.2078,4597.1,4597.0,1.4491]
[1758151364711,4.0361,4597.6,4597.5,1.4491]
[1758151364916,3.5377,4597.6,4597.5,1.4491]
[1758151365117,3.2078,4597.6,4597.5,1.4491]
[1758151365412,0.3299,4597.6,4597.5,1.4491]
[1758151365804,0.227,4597.8,4597.5,0.9178]
[1758151366007,0.662,4597.7,4597.6,1.2453]
[1758151370316,1.679591,4597.7,4596.7,0.227]
[1758151370512,4.3682,4596.9,4596.8,0.8823]
[1758151371817,4.3682,4596.9,4596.8,1.2453]
[1758151373418,1.1604,4596.9,4596.8,1.2453]
[1758151374724,0.662,4596.9,4596.8,1.2453]
[1758151375114,0.5569,4597.3,4597.2,0.714]
[1758151375320,1.90683917,4597.3,4597.2,1.2453]
[1758151377524,1.3874,4597.3,4597.2,1.2453]
[1758151378127,1.90717284,4597.3,4597.2,1.2453]
[1758151378325,1.3874,4597.3,4597.2,1.2453]
[1758151378526,1.90717505,4597.3,4597.2,1.2453]
[1758151380129,1.68017505,4597.3,4597.2,1.2453]
[1758151381017,0.662,4597.3,4597.2,1.2453]
[1758151381222,0.85021692,4597.3,4597.2,1.2453]
[1758151381522,3.4348,4597.4,4597.3,0.5298]
[1758151381721,0.5612,4597.4,4597.3,1.234]
[1758151382222,1.08177502,4597.4,4597.3,1.234]
[1758151382523,1.93137502,4597.4,4597.3,1.234]
[1758151382827,5.13917502,4597.4,4597.3,1.234]
[1758151387327,4.26993165,4597.4,4597.3,1.234]
[1758151387530,0.74757502,4597.4,4597.3,1.234]
[1758151387730,0.52057502,4597.4,4597.3,1.234]
[1758151389723,1.75227502,4597.4,4597.3,1.234]
[1758151389919,1.75227502,4597.4,4597.3,0.888]
[1758151392231,1.75227502,4597.4,4597.0,0.2038]
[1758151392532,1.75227502,4597.3,4597.2,1.2141]
[1758151392733,0.87667502,4597.3,4597.2,1.2141]
[1758151393334,0.52057502,4597.3,4597.2,1.2141]
[1758151394234,0.3561,4597.6,4597.5,0.8753]
[1758151394427,0.87622118,4597.6,4597.5,1.4089]
[1758151395231,0.52012118,4597.6,4597.5,1.4089]
[1758151396037,3.2078,4597.9,4597.8,1.2141]
[1758151396229,3.5639,4597.9,4597.8,1.2141]
[1758151396632,0.3561,4597.9,4597.8,1.2141]
[1758151398534,3.2078,4598.4,4598.1,0.6805]
[1758151398740,0.89771572,4598.2,4598.1,1.2141]
[1758151399429,0.022,4598.2,4598.1,1.2141]
[1758151402636,0.3781,4598.2,4598.1,1.2141]
[1758151402836,1.2537,4598.2,4598.1,0.5336]
[1758151403035,1.77286181,4598.2,4597.9,0.1739]
[1758151403233,1.2317,4598.0,4597.9,0.1739]
[1758151404138,1.9361832,4598.0,4597.9,0.1739]
[1758151404442,5.9361832,4598.0,4597.0,0.5336]
[1758151404736,1.2317,4597.2,4597.1,0.9014]
[1758151405938,3.5639,4597.6,4597.5,1.4089]
[1758151406139,4.08321498,4597.6,4597.5,1.4089]
[1758151406340,4.42511498,4597.6,4597.5,1.4089]
[1758151406744,0.226,4598.0,4597.5,1.4089]
[1758151406942,0.51929642,4597.9,4597.8,0.6805]
[1758151407141,0.51929642,4597.9,4597.8,1.2141]
[1758151407546,0.022,4598.2,4597.8,0.6805]
[1758151407846,0.8753744,4598.1,4598.0,1.4089]
[1758151408343,0.698,4598.1,4598.0,1.4089]
[1758151410847,0.022,4598.2,4598.1,0.5336]
[1758151411046,0.022,4598.2,4598.1,1.2141]
[1758151412446,0.022,4598.2,4598.1,5.2141]
[1758151413242,0.022,4598.2,4598.1,8.4219]
[1758151414246,3.9058,4599.3,4599.2,0.6805]
[1758151414447,4.42546655,4599.3,4599.2,1.2141]
[1758151416445,0.45,4599.4,4599.3,0.4866]
[1758151416639,0.45,4599.4,4599.3,1.1492]
[1758151417048,1.6526,4599.4,4599.3,1.1492]
[1758151420254,1.1472,4599.4,4599.3,1.1492]
[1758151421243,1.6526,4599.4,4599.1,0.0217]
[1758151421447,4.4104,4599.2,4599.1,0.0217]
[1758151421648,4.6364,4599.2,4599.1,0.0217]
[1758151423850,3.905,4599.2,4599.1,1.1709]
[1758151424050,3.5499,4599.2,4599.1,1.1709]
[1758151424251,4.4104,4599.2,4599.1,1.1709]
[1758151424753,4.4104,4599.2,4599.1,0.0217]
[1758151425653,4.4104,4599.2,4599.1,0.8483]
[1758151426454,3.905,4599.2,4599.1,1.1709]
[1758151426757,4.93013422,4599.2,4598.7,0.4866]
[1758151426957,0.6972,4598.8,4598.7,0.4866]
[1758151427258,1.2026,4598.8,4598.7,0.4866]
[1758151428152,0.6972,4598.2,4598.1,0.8266]
[1758151428352,1.2026,4598.2,4598.1,0.8266]
[1758151428859,1.2026,4598.2,4598.1,1.1492]
[1758151429860,0.6972,4598.2,4598.1,1.1492]
[1758151431558,1.2026,4598.2,4598.1,0.4866]
[1758151431752,1.2026,4598.2,4597.9,0.0217]
[1758151431957,1.3137,4598.0,4597.9,0.0217]
[1758151432160,1.5397,4598.0,4597.9,0.0217]
[1758151432357,1.4286,4598.0,4597.9,0.0217]
[1758151432553,1.4286,4598.0,4597.9,0.8483]
[1758151432859,1.2026,4598.0,4597.9,0.8483]
[1758151433059,1.94842502,4598.0,4597.9,0.8483]
[1758151435657,1.94842502,4598.0,4597.9,0.5083]
[1758151436063,1.21702502,4598.0,4597.9,1.1709]
[1758151436259,0.3421,4598.0,4597.9,1.1709]
[1758151436752,0.6972,4598.0,4597.9,1.1709]
[1758151437260,1.2026,4598.0,4597.9,1.1709]
[1758151438065,1.2026,4598.0,4597.9,0.8483]
[1758151438657,1.2026,4598.0,4597.9,0.0217]
[1758151438965,1.3008,4598.0,4597.9,0.0217]
[1758151439169,1.82059256,4598.0,4597.9,0.0217]
[1758151440168,1.72239256,4598.0,4597.9,0.0217]
[1758151440361,1.72239256,4598.0,4597.9,0.4991]
[1758151440760,1.72239256,4598.0,4597.9,0.0217]
[1758151440961,1.72239256,4598.0,4597.9,0.4991]
[1758151440962,1.94839256,4598.0,4597.9,0.4991]
[1758151441470,1.94839256,4598.0,4597.9,0.8393]
[1758151441766,0.9232,4598.0,4597.9,1.1705]
[1758151441967,3.8796,4598.4,4598.3,0.8176]
[1758151442170,4.06266226,4598.4,4598.3,1.1488]
[1758151442372,3.2078,4598.4,4598.3,1.1488]
[1758151442568,0.226,4598.5,4598.3,0.6714]
[1758151442764,0.226,4598.6,4598.5,0.8712]
[1758151442965,0.3353,4598.6,4598.5,1.3486]
[1758151443269,3.4338,4598.9,4598.8,1.1488]
[1758151443861,0.226,4598.9,4598.8,1.1488]
[1758151444068,0.45,4599.4,4599.3,1.1488]
[1758151444476,0.45,4599.4,4599.3,5.1488]
[1758151445768,0.45,4599.4,4599.3,8.3566]
[1758151445969,10.0,4600.0,4599.9,1.1469]
[1758151449486,10.0,4600.0,4599.9,4.3547]
[1758151450279,10.0,4600.0,4599.9,8.3547]
[1758151450788,1.03,4601.0,4600.9,0.325]
[1758151451784,1.3552,4601.0,4600.9,0.325]
[1758151452183,1.3552,4601.0,4600.9,0.1625]
[1758151453386,1.3552,4601.0,4600.9,0.325]
[1758151454293,1.3552,4601.0,4600.9,0.1625]
[1758151455488,1.03,4600.5,4600.4,0.551]
[1758151456494,1.3552,4600.5,4600.4,0.551]
[1758151456986,1.3552,4600.5,4600.4,0.1625]
[1758151457191,1.03,4600.0,4599.9,3.5328]
[1758151457393,1.03,4600.0,4599.9,3.7588]
[1758151458689,0.7121,4600.0,4599.9,3.7588]
[1758151458890,0.7121,4600.0,4599.9,3.8604]
[1758151459487,1.03,4600.0,4599.9,3.7588]
[1758151464996,1.03,4600.0,4599.9,3.5328]
[1758151465186,1.03,4600.0,4599.9,3.7588]
[1758151467898,0.7121,4600.0,4599.9,3.8604]
[1758151469798,1.03,4600.0,4599.9,3.7588]
[1758151469999,1.03,4600.0,4599.9,3.93299065]
[1758151472601,0.7121,4600.0,4599.9,4.03459065]
[1758151473199,0.2077,4600.5,4599.9,4.42573065]
[1758151473401,0.5044,4600.4,4600.3,0.325]
[1758151473596,0.8223,4600.4,4600.3,0.55]
[1758151473798,0.5044,4600.7,4600.3,0.55]
[1758151474100,0.5044,4600.7,4600.6,3.6344]
[1758151474294,0.5044,4600.7,4600.6,3.7578]
[1758151474497,0.8223,4600.7,4600.6,3.7578]
[1758151474895,1.1475,4600.7,4600.6,3.7578]
[1758151476204,0.8223,4600.7,4600.6,3.7578]
[1758151476402,0.8223,4600.7,4600.6,3.9281]
[1758151476603,0.5044,4600.7,4600.6,3.9281]
[1758151477206,0.536,4600.9,4600.6,3.7578]
[1758151477409,0.536,4600.9,4600.8,0.7153]
[1758151477607,0.536,4600.9,4600.8,0.9403]
[1758151478005,0.536,4601.2,4601.1,0.545]
[1758151478210,0.536,4601.2,4601.1,0.9403]
[1758151480010,0.871,4601.2,4601.1,0.9403]
[1758151480210,0.871,4601.2,4601.1,0.77]
[1758151480411,0.871,4601.2,4601.1,3.9778]
[1758151481307,0.536,4601.2,4601.1,4.31930763]
[1758151481507,0.7259,4601.5,4601.1,4.54003763]
[1758151481711,0.536,4601.5,4601.4,0.545]
[1758151481906,0.536,4601.5,4601.4,0.9403]
[1758151482514,0.7262,4601.5,4601.4,0.9403]
[1758151482813,1.0612,4601.5,4601.4,0.9403]
[1758151483007,0.7262,4601.5,4601.4,0.9403]
[1758151483214,0.7262,4601.5,4601.4,1.33131]
[1758151483606,0.7262,4601.5,4601.4,0.9403]
[1758151483909,1.0612,4601.5,4601.4,0.77]
[1758151484109,1.0612,4601.5,4601.4,0.9403]
[1758151484309,0.7262,4601.5,4601.4,0.9403]
[1758151485414,0.536,4601.5,4601.4,0.9403]
[1758151485609,0.7262,4601.5,4601.4,0.9403]
[1758151486913,1.3769,4601.5,4601.4,0.4975]
[1758151487214,1.3769,4601.5,4601.4,0.77]
[1758151487215,1.0612,4601.5,4601.4,0.77]
[1758151487714,1.3769,4601.5,4601.4,0.2725]
[1758151487914,1.3769,4601.5,4601.4,0.4975]
[1758151491017,1.3769,4601.5,4601.4,0.225]
[1758151491417,0.536,4601.4,4601.1,3.2078]
[1758151491615,1.1867,4601.2,4601.1,3.2078]
[1758151491816,1.1867,4601.2,4601.1,3.4328]
[1758151493621,0.1902,4601.0,4600.6,3.2078]
[1758151493811,1.1867,4600.7,4600.6,3.2078]
[1758151494013,1.1867,4600.7,4600.6,3.7053]
[1758151494220,1.1867,4600.7,4600.6,3.9778]
[1758151495017,1.1867,4600.7,4600.6,3.4328]
[1758151495429,3.8585,4600.7,4598.6,3.2078]
[1758151495722,3.2078,4599.0,4598.0,0.189]
[1758151496023,3.2078,4598.1,4598.0,0.189]
[1758151496220,3.41021969,4598.1,4598.0,0.189]
[1758151497628,3.41021969,4598.1,4598.0,0.7236]
[1758151499029,3.41021969,4598.1,4598.0,1.4706]
[1758151501227,3.2078,4598.1,4598.0,1.4706]
[1758151505430,3.2078,4598.1,4598.0,1.6956]
[1758151507629,3.2078,4598.7,4598.5,0.2264]
[1758151507940,3.2078,4598.7,4598.6,1.333]
[1758151509040,3.4328,4599.2,4598.6,1.333]
[1758151509334,3.4328,4599.2,4599.1,0.5532]
[1758151509738,3.76471152,4599.2,4599.1,0.5532]
[1758151510039,3.76471152,4599.2,4599.1,0.9409]
[1758151510233,3.53971152,4599.2,4599.1,0.9409]
[1758151511942,3.5397513,4599.2,4599.1,0.9409]
[1758151512130,3.2078,4599.2,4599.1,1.333]
[1758151516538,3.2078,4599.2,4599.1,0.9409]
[1758151517145,3.2078,4599.7,4599.5,0.2264]
[1758151517340,3.4328,4599.7,4599.6,1.333]
[1758151517741,3.2078,4599.7,4599.6,1.333]
[1758151518842,3.2078,4599.7,4599.6,0.9409]
[1758151519444,3.2078,4599.7,4599.6,1.333]
[1758151522742,3.2078,4599.7,4599.6,0.5532]
[1758151522943,7.2078,4599.7,4599.6,0.5532]
[1758151523143,7.4960973,4599.7,4599.6,0.5532]
[1758151526344,8.07488106,4599.7,4599.6,0.5532]
[1758151527552,7.78658376,4599.7,4599.6,0.5532]
[1758151527749,4.07565289,4599.7,4599.6,0.9409]
[1758151527951,4.30065289,4599.7,4599.6,1.333]
[1758151528547,4.30065289,4599.7,4599.6,0.5532]
[1758151528947,4.3007367,4599.7,4599.6,0.5532]
[1758151529546,4.0757367,4599.7,4599.6,0.5532]
[1758151529853,4.3007367,4599.7,4599.6,0.5532]
[1758151530050,4.3007367,4599.7,4599.6,0.9409]
[1758151530650,4.3007367,4599.7,4599.6,1.333]
[1758151530850,4.0757367,4599.7,4599.6,1.333]
[1758151531750,4.07585825,4599.7,4599.6,1.333]
[1758151531952,4.07585825,4599.7,4599.6,0.5532]
[1758151533060,8.07585825,4599.7,4599.5,0.2264]
[1758151533261,1.09305825,4599.6,4599.5,0.2264]
[1758151534163,5.31046826,4599.6,4599.0,0.2264]
[1758151534352,5.31046826,4599.6,4599.0,0.7796]
[1758151534353,3.2078,4599.1,4599.0,0.7796]
[1758151534554,4.30085825,4599.1,4599.0,0.7796]
[1758151535657,4.29135461,4599.1,4599.0,0.7796]
[1758151535858,0.85855461,4599.1,4599.0,5.5279]
[1758151536052,0.27977085,4599.1,4599.0,5.5279]
[1758151536354,3.2078,4599.7,4599.6,0.5275]
[1758151536556,4.04637475,4599.7,4599.6,0.5275]
[1758151536755,4.04637475,4599.7,4599.6,1.2709]
[1758151538256,3.78834167,4599.7,4599.6,1.2709]
[1758151540266,4.01334167,4599.7,4599.6,1.2709]
[1758151541962,4.01334167,4599.7,4599.6,0.9103]
[1758151542667,4.01334167,4599.7,4599.6,0.5275]
[1758151544468,4.01334167,4599.7,4599.6,0.9103]
[1758151544970,4.01334167,4599.7,4599.6,1.2709]
[1758151545167,3.78834167,4599.7,4599.6,1.2709]
[1758151545673,3.2078,4599.7,4599.6,1.2709]
[1758151547967,3.2078,4600.2,4599.6,5.2709]
[1758151548271,3.2078,4600.2,4600.1,1.2709]
[1758151548467,0.225,4600.6,4600.5,0.9662]
[1758151548673,0.80599429,4600.6,4600.5,1.4937]
[1758151549375,0.58099429,4600.6,4600.5,1.4937]
[1758151550170,0.58099429,4600.6,4600.5,1.1331]
[1758151550375,0.58099429,4600.6,4600.5,0.7503]
[1758151551470,0.58099429,4600.6,4600.5,1.1331]
[1758151552772,0.58099429,4600.6,4600.5,1.4937]
[1758151553375,0.80599429,4600.6,4600.5,1.4937]
[1758151555385,0.58099429,4600.6,4600.5,1.4937]
[1758151557283,3.2078,4600.7,4600.5,1.4937]
[1758151557483,3.2078,4600.7,4600.6,1.2709]
[1758151563192,3.2078,4600.7,4600.6,0.5275]
[1758151563386,3.78783996,4600.7,4600.6,0.5275]
[1758151563587,7.78783996,4600.7,4600.6,0.5275]
[1758151564191,8.00519996,4600.7,4600.6,0.5275]
[1758151564695,7.78783996,4600.7,4600.6,0.5275]
[1758151565793,4.01283996,4600.7,4600.6,1.2485]
[1758151566885,4.01283996,4600.7,4600.5,0.2228]
[1758151566886,8.01283996,4600.7,4600.5,0.2228]
[1758151567093,0.79337292,4600.6,4600.5,0.2228]
[1758151567285,1.01073292,4600.6,4600.5,0.2228]
[1758151567493,0.79337292,4600.6,4600.5,0.2228]
[1758151567686,5.01074292,4600.6,4600.4,0.1738]
[1758151567893,5.23574292,4600.5,4599.1,0.5378]
[1758151568195,3.2078,4599.6,4599.5,0.7606]
[1758151568395,4.01283996,4599.6,4599.5,0.7606]
[1758151569293,4.22616279,4599.6,4599.5,0.7606]
[1758151569495,8.22616279,4599.6,4599.5,0.2228]
[1758151569700,8.22616279,4599.6,4599.0,0.7642]
[1758151570003,3.2078,4599.1,4599.0,0.7642]
[1758151570296,4.01283996,4599.1,4599.0,0.7642]
[1758151571890,3.78783996,4599.1,4599.0,0.7642]
[1758151572088,4.01283996,4599.1,4599.0,0.7642]
[1758151572395,4.01283996,4599.1,4599.0,1.1418]
[1758151573900,3.78783996,4599.1,4599.0,1.5005]
[1758151574201,4.01283996,4599.1,4599.0,1.5005]
[1758151574396,4.01283996,4599.1,4599.0,0.7642]
[1758151574602,8.01283996,4599.1,4599.0,0.2264]
[1758151574897,8.01283996,4599.1,4598.5,0.2075]
[1758151575200,3.2078,4598.6,4598.5,0.7453]
[1758151575501,4.01283996,4598.6,4598.5,0.2075]
[1758151575897,4.01283996,4598.6,4598.5,0.7453]
[1758151577605,8.01283996,4598.6,4598.5,0.7453]
[1758151577803,8.01283996,4598.6,4598.5,0.2075]
[1758151579098,8.23029996,4598.6,4598.2,0.1739]
[1758151579304,4.79022951,4598.5,4597.5,0.1739]
[1758151579502,3.2078,4597.6,4597.5,0.1739]
[1758151579705,4.01283996,4597.6,4597.5,0.1739]
[1758151579906,8.01283996,4597.6,4597.5,0.1739]
[1758151580707,8.01283996,4597.6,4597.5,0.7117]
[1758151582002,8.01283996,4597.6,4597.0,0.2075]
[1758151582003,8.01283996,4597.6,4597.0,0.7453]
[1758151582210,3.2078,4597.1,4597.0,0.7453]
[1758151582503,3.4328,4597.1,4597.0,0.7453]
[1758151582910,7.4328,4597.1,4597.0,0.2075]
[1758151584201,8.00948185,4597.1,4596.7,0.5378]
[1758151584411,3.4328,4597.1,4597.0,0.2075]
[1758151584612,8.00948899,4597.1,4597.0,0.2075]
[1758151584911,8.00948899,4597.1,4596.7,0.5378]
[1758151584912,4.00948899,4597.1,4596.7,0.5378]
[1758151585112,3.2078,4597.1,4597.0,0.7453]
[1758151585308,3.4328,4597.1,4597.0,1.1229]
[1758151585504,44.2328,4597.1,4597.0,1.1229]
[1758151586411,3.4328,4597.1,4597.0,1.4816]
[1758151588408,3.2078,4597.1,4597.0,1.4816]
[1758151588609,3.4328,4597.1,4597.0,1.4816]
[1758151588801,3.2078,4597.1,4597.0,1.4816]
[1758151589009,3.4328,4597.1,4597.0,1.4816]
[1758151592103,4.00973399,4597.1,4597.0,1.4816]
[1758151593906,4.00973399,4597.1,4597.0,0.7453]
[1758151594613,8.00973399,4597.1,4596.6,0.082]
[1758151594810,0.57693399,4597.0,4596.6,0.082]
[1758151595009,0.225,4596.9,4596.6,0.082]
[1758151595210,0.57693399,4596.8,4596.6,0.082]
[1758151595513,0.225,4596.7,4596.5,0.2075]
[1758151595713,3.78473399,4596.6,4596.5,0.2075]
[1758151596519,4.00973399,4596.6,4596.5,0.9411]
[1758151596819,4.00973399,4596.6,4596.5,1.4644]
[1758151597112,3.78473399,4596.6,4596.5,1.4644]
[1758151597318,4.00973399,4596.6,4596.5,1.0958]
[1758151597512,4.00973399,4596.6,4596.5,0.7308]
[1758151598112,3.78473399,4596.6,4596.5,1.4644]
[1758151598314,4.00973399,4596.6,4596.5,1.4644]
[1758151599509,3.78473399,4596.6,4596.5,1.4644]
[1758151599714,4.00973399,4596.6,4596.5,1.4644]
[1758151601924,4.00973399,4596.6,4596.5,0.7308]
[1758151602831,4.00973399,4596.6,4596.5,1.0958]
[1758151603631,4.22280126,4596.6,4596.5,1.0958]
[1758151604426,4.22280126,4596.6,4596.5,0.7308]
[1758151605127,4.22280126,4596.6,4596.5,1.4644]
[1758151605630,3.99780126,4596.6,4596.5,1.4644]
[1758151605923,4.22280126,4596.6,4596.5,1.4644]
[1758151608130,4.22280126,4596.6,4596.5,0.7308]
[1758151610033,3.99780126,4596.6,4596.5,1.4644]
[1758151610236,4.22280126,4596.6,4596.5,1.4644]
[1758151611633,4.22366779,4596.6,4596.5,1.4644]
[1758151612939,4.22266779,4596.6,4596.5,1.4644]
[1758151614739,4.22268584,4596.6,4596.5,1.4644]
[1758151616537,4.22268584,4596.6,4596.5,0.7308]
[1758151618633,4.22271361,4596.6,4596.5,0.7308]
[1758151619038,4.22271361,4596.6,4596.5,1.0958]
[1758151620338,3.99871361,4596.6,4596.5,1.4359]
[1758151620644,4.22271361,4596.6,4596.5,1.4359]
[1758151622141,4.22271361,4596.6,4596.5,1.0958]
[1758151622547,4.22271361,4596.6,4596.5,0.7308]
[1758151624645,4.22271361,4596.6,4596.5,1.0813]
[1758151625240,4.22272524,4596.6,4596.5,1.0813]
[1758151625442,4.22272524,4596.6,4596.5,1.4214]
[1758151626449,4.22272524,4596.6,4596.5,1.0813]
[1758151626650,4.22272524,4596.6,4596.5,0.7308]
[1758151627355,3.99872524,4596.6,4596.5,0.7308]
[1758151627557,4.22272524,4596.6,4596.5,0.7308]
[1758151629056,4.22272524,4596.6,4596.5,0.2075]
[1758151629255,4.22272524,4596.6,4596.1,0.5511]
[1758151629559,0.79092524,4596.5,4596.1,0.5511]
[1758151629855,1.01492524,4596.4,4596.1,0.5511]
[1758151630051,0.79092524,4596.3,4596.1,0.0217]